fUSD/lending_fUSD_20241125
["ID","MTS","AMOUNT","RATE_DAILY","PERIOD"]
[343313813,1732572633707,-500.0,0.00019972,2]
[343313815,1732572633718,-500.0,0.00019972,2]
[343313817,1732572633730,-500.0,0.00019972,2]
[343313819,1732572633740,-500.0,0.00019972,2]
[343313821,1732572633750,-500.0,0.00019972,2]
[343313823,1732572633760,-500.0,0.00019972,2]
[343313825,1732572633771,-545.28743922,0.00019972,2]
[343313827,1732572633782,-500.0,0.00019972,2]
[343313829,1732572633793,-500.0,0.00019972,2]
[343313831,1732572633804,-500.0,0.00019972,2]
[343313833,1732572633816,-500.0,0.00019972,2]
[343313835,1732572633826,-500.0,0.00019972,2]
[343313837,1732572633836,-500.0,0.00019972,2]
[343313839,1732572633847,-500.0,0.00019972,2]
[343313842,1732572633858,-39.89994007,0.00019972,2]
[343313844,1732572633872,-460.10005993,0.00019972,2]
[343313846,1732572633883,-102.66214007,0.00019972,2]
[343314150,1732572639109,-202.0796117,0.00019972,2]
[343314151,1732572639118,-236.7271159,0.00019972,2]
[343314152,1732572639128,-642.0,0.00019973,2]
[343314153,1732572639138,-462.0,0.00019973,2]
[343314154,1732572639147,-299.82995671,0.00019973,2]
[343314155,1732572639157,-50180.0,0.00019973,2]
[343314156,1732572639166,-500.0,0.00019973,2]
[343314157,1732572639175,-159.25433002,0.00019973,2]
[343314158,1732572639184,-150.0,0.00019973,2]
[343314159,1732572639194,-500.0,0.00019973,2]
[343314160,1732572639204,-500.0,0.00019973,2]
[343314161,1732572639213,-1000.0,0.00019987,3]
[343314162,1732572639223,-213.45747164,0.00019989,2]
[343314163,1732572639236,-899.48,0.00019996,2]
[343314164,1732572639246,-1000.0,0.00019999,2]
[343314165,1732572639256,-1000.0,0.00019999,2]
[343314166,1732572639265,-1019.33870642,0.00019999,5]
[343314167,1732572639275,-520196.6374744,0.00019999,2]
[343314168,1732572639285,-317217.0202352,0.00019999,2]
[343314169,1732572639294,-1019.33870643,0.00019999,5]
[343314170,1732572639304,-1019.33870643,0.00019999,5]
[343314171,1732572639314,-1019.33870643,0.00019999,5]
[343314172,1732572639323,-1019.33870643,0.00019999,5]
[343314173,1732572639333,-1019.33870642,0.00019999,5]
[343314174,1732572639343,-200.6204452,0.00019999,5]
[343314175,1732572639352,-1019.33870642,0.00019999,5]
[343314176,1732572639362,-1019.33870642,0.00019999,5]
[343314177,1732572639372,-1019.33870642,0.00019999,5]
[343314178,1732572639381,-1019.33870642,0.00019999,5]
[343314179,1732572639391,-1133.72543699,0.00019999,5]
[343314180,1732572639401,-1133.72543699,0.00019999,5]
[343314181,1732572639410,-1133.72543699,0.00019999,5]
[343314182,1732572639420,-1133.72543699,0.00019999,5]
[343314183,1732572639429,-1133.72543701,0.00019999,5]
[343314184,1732572639439,-261.19534869,0.00019999,2]
[343314185,1732572639449,-832.1,0.00019999,2]
[343314186,1732572639459,-1000.0,0.00019999,2]
[343314187,1732572639469,-97180954.17426753,0.0002,2]
[343314188,1732572639483,-117290.02828309,0.0002,2]
[343314189,1732572639495,-5693.94736934,0.0002,2]
[343314190,1732572639511,-12739.0364615,0.0002,2]
[343314191,1732572639619,-21141.95534849,0.0002,2]
[343314192,1732572639640,-8427.29559827,0.0002,2]
[343314196,1732572640354,-205049.2235321,0.0002,2]
[343314197,1732572640367,-593.57612548,0.0002,2]
[343314198,1732572640380,-941.84,0.0002,2]
[343314199,1732572640456,-15028.4028,0.0002,2]
[343314200,1732572640476,-2642.02316309,0.0002,2]
[343314201,1732572640503,-3485.31643898,0.0002,2]
[343314202,1732572640523,-1547.12302797,0.0002,2]
[343314203,1732572640610,-342.108,0.0002,2]
[343314204,1732572640621,-284.19869469,0.0002,2]
[343314205,1732572640705,-4690.33565,0.0002,2]
[343314206,1732572640716,-2351.5984314,0.0002,2]
[343314219,1732572643339,-4961.81200982,0.0002,2]
[343314224,1732572643493,-4211.685,0.0002,2]
[343314225,1732572643504,-940.20165,0.0002,2]
[343314226,1732572643723,-21773.28421081,0.0002,2]
[343314227,1732572643736,-708.6432355,0.0002,2]
[343314253,1732572646582,-10530.60520401,0.0002,2]
[343314254,1732572646613,-1477.5862,0.0002,2]
[343314255,1732572646660,-2138.72765279,0.0002,2]
[343314297,1732572685165,-500.0,0.000245,60]
[343314298,1732572730794,300.0,0.00019999,10]
[343314302,1732573047427,-10853.27616552,0.000245,60]
[343314303,1732573047672,-38523.25145391,0.000245,60]
[343314305,1732573086405,260.42,0.00019392,30]
[343314306,1732573086667,260.42,0.00021976,30]
[343314309,1732573334086,-10546.07,0.000245,60]
[343314310,1732573334123,-35261.40238057,0.000245,60]
[343314312,1732573387677,332.23,0.00025671,120]
[343314314,1732573425422,-172.72,0.00015606,2]
[343314315,1732573425455,-2042.86,0.00017556,2]
[343314316,1732573425487,-4784.42,0.00018,2]
[343314317,1732573442631,-250.0,0.00015,2]
[343314318,1732573442659,-300.0,0.00017,2]
[343314319,1732573442686,-142.9820864,0.00018,2]
[343314320,1732573533389,-250.0,0.00018074,2]
[343314321,1732573533413,-829.86,0.00018261,2]
[343314322,1732573533437,-336.39522336,0.0001857,2]
[343314323,1732573533463,-8583.74477664,0.00018579,2]
[343314337,1732573740944,234.37,0.00018147,30]
[343314338,1732573741352,234.37,0.00020731,30]
[343314383,1732573831574,-560.9604,0.00016019,2]
[343314384,1732573831586,-1379.7496,0.00016019,2]
[343314385,1732573831596,-150.0,0.00017088,2]
[343314386,1732573831606,-144.82983545,0.00017915,2]
[343314389,1732573831688,-855.17016455,0.00017915,2]
[343314390,1732573831699,-1642.42,0.00017924,2]
[343314391,1732573831708,-1940.71,0.00018283,2]
[343314392,1732573831718,-214.14354205,0.000184,2]
[343314393,1732573831727,-300.0,0.00018578,2]
[343314394,1732573831737,-15316.25522336,0.00018579,2]
[343314395,1732573831747,-166.51,0.00018581,2]
[343314396,1732573831757,-5223.0,0.00018621,2]
[343314397,1732573831767,-250.0,0.0001867,2]
[343314398,1732573831776,-414.44,0.0001867,2]
[343314399,1732573831785,-7400.0,0.000188,2]
[343314400,1732573831795,-205.53342036,0.00018898,2]
[343314401,1732573831805,-205.53342029,0.00018898,2]
[343314402,1732573831815,-205.53342029,0.00018898,2]
[343314403,1732573831825,-205.53342029,0.00018899,2]
[343314404,1732573831835,-205.53342029,0.00018899,2]
[343314405,1732573831846,-583.20807416,0.00018899,2]
[343314406,1732573831855,-205.53342029,0.00018899,2]
[343314407,1732573831865,-583.20807415,0.00018899,2]
[343314408,1732573831876,-205.53342029,0.00018899,2]
[343314409,1732573831888,-211.47768165,0.000189,2]
[343314410,1732573831897,-205.53342029,0.000189,2]
[343314411,1732573831907,-211.47768165,0.000189,2]
[343314412,1732573831917,-211.47768165,0.000189,2]
[343314413,1732573831930,-205.53342029,0.000189,2]
[343314414,1732573831939,-211.47768165,0.000189,2]
[343314415,1732573831948,-64012.0216,0.000189,2]
[343314416,1732573831958,-211.47768165,0.000189,2]
[343314417,1732573831968,-1396.32166504,0.000189,2]
[343314418,1732573831977,-205.53342029,0.000189,2]
[343314419,1732573831987,-184.28893103,0.000189,2]
[343314420,1732573831996,-511.3184581,0.000189,2]
[343314421,1732573832005,-437.27487868,0.000189,2]
[343314422,1732573832014,-150.86651653,0.00018973,2]
[343314423,1732573832023,-187.22739367,0.00018973,2]
[343314424,1732573832032,-485.12700548,0.00018973,2]
[343314425,1732573832042,-159.2483093,0.00018973,2]
[343314426,1732573832052,-169.21463042,0.00018973,2]
[343314427,1732573832061,-500.0,0.00018973,2]
[343314428,1732573832071,-500.0,0.00018973,2]
[343314429,1732573832081,-150.0,0.00018973,2]
[343314430,1732573832091,-541.76,0.00018976,3]
[343314431,1732573832100,-462.0,0.00018986,2]
[343314432,1732573832110,-50180.0,0.00018986,2]
[343314433,1732573832121,-642.0,0.00018986,2]
[343314434,1732573832135,-151.34584557,0.00018986,2]
[343314435,1732573832153,-341.72303555,0.00018989,2]
[343314436,1732573832165,-341.72303555,0.0001899,2]
[343314437,1732573832179,-341.72303555,0.0001899,2]
[343314438,1732573832188,-236.7271159,0.00018998,2]
[343314439,1732573832198,-202.0796117,0.00018998,2]
[343314440,1732573832207,-190.96724747,0.00018998,2]
[343314441,1732573832217,-500.0,0.00018998,2]
[343314442,1732573832226,-500.0,0.00018998,2]
[343314443,1732573832236,-500.0,0.00018998,2]
[343314444,1732573832246,-500.0,0.00018998,2]
[343314445,1732573832255,-500.0,0.00018998,2]
[343314446,1732573832264,-500.0,0.00018998,2]
[343314447,1732573832274,-500.0,0.00018998,2]
[343314448,1732573832283,-500.0,0.00018998,2]
[343314449,1732573832293,-500.0,0.00018998,2]
[343314450,1732573832302,-500.0,0.00018998,2]
[343314451,1732573832312,-500.0,0.00018998,2]
[343314452,1732573832321,-500.0,0.00018998,2]
[343314453,1732573832331,-500.0,0.00018998,2]
[343314454,1732573832340,-500.0,0.00018998,2]
[343314455,1732573832349,-500.0,0.00018998,2]
[343314456,1732573832359,-500.0,0.00018998,2]
[343314457,1732573832369,-500.0,0.00018998,2]
[343314458,1732573832378,-500.0,0.00018998,2]
[343314459,1732573832387,-500.0,0.00018998,2]
[343314460,1732573832397,-500.0,0.00018998,2]
[343314461,1732573832406,-500.0,0.00018998,2]
[343314462,1732573832416,-500.0,0.00018998,2]
[343314463,1732573832427,-500.0,0.00018998,2]
[343314464,1732573832436,-500.0,0.00018998,2]
[343314465,1732573832445,-500.0,0.00018998,2]
[343314466,1732573832454,-500.0,0.00018998,2]
[343314467,1732573832464,-500.0,0.00018998,2]
[343314468,1732573832473,-500.0,0.00018998,2]
[343314469,1732573832482,-516.09301484,0.00018998,2]
[343314470,1732573832491,-500.0,0.00018998,2]
[343314471,1732573832501,-220.64466469,0.00018998,2]
[343314472,1732573832510,-500.0,0.00018998,2]
[343314473,1732573832519,-500.0,0.00018998,2]
[343314474,1732573832528,-500.0,0.00018998,2]
[343314475,1732573832537,-500.0,0.00018998,2]
[343314476,1732573832546,-500.0,0.00018998,2]
[343314477,1732573832556,-500.0,0.00018998,2]
[343314478,1732573832566,-500.0,0.00018998,2]
[343314479,1732573832576,-500.0,0.00018998,2]
[343314480,1732573832586,-500.0,0.00018998,2]
[343314481,1732573832595,-500.0,0.00018998,2]
[343314482,1732573832605,-500.0,0.00018998,2]
[343314483,1732573832615,-500.0,0.00018998,2]
[343314484,1732573832624,-500.0,0.00018998,2]
[343314485,1732573832633,-500.0,0.00018998,2]
[343314486,1732573832643,-500.0,0.00018998,2]
[343314487,1732573832652,-500.0,0.00018998,2]
[343314488,1732573832661,-500.0,0.00018998,2]
[343314489,1732573832671,-500.0,0.00018998,2]
[343314490,1732573832683,-500.0,0.00018998,2]
[343314491,1732573832693,-500.0,0.00018998,2]
[343314492,1732573832702,-500.0,0.00018998,2]
[343314493,1732573832712,-500.0,0.00018998,2]
[343314494,1732573832722,-500.0,0.00018998,2]
[343314495,1732573832731,-500.0,0.00018998,2]
[343314496,1732573832741,-500.0,0.00018998,2]
[343314497,1732573832750,-500.0,0.00018998,2]
[343314498,1732573832760,-500.0,0.00018998,2]
[343314499,1732573832769,-500.0,0.00018998,2]
[343314500,1732573832779,-500.0,0.00018998,2]
[343314501,1732573832788,-500.0,0.00018998,2]
[343314502,1732573832797,-500.0,0.00018998,2]
[343314503,1732573832807,-500.0,0.00018998,2]
[343314504,1732573832817,-500.0,0.00018998,2]
[343314505,1732573832826,-500.0,0.00018998,2]
[343314506,1732573832836,-500.0,0.00018998,2]
[343314507,1732573832845,-500.0,0.00018998,2]
[343314508,1732573832855,-500.0,0.00018998,2]
[343314509,1732573832864,-500.0,0.00018998,2]
[343314510,1732573832877,-500.0,0.00018998,2]
[343314511,1732573832886,-500.0,0.00018998,2]
[343314512,1732573832896,-500.0,0.00018998,2]
[343314513,1732573832905,-500.0,0.00018998,2]
[343314514,1732573832916,-500.0,0.00018998,2]
[343314515,1732573832929,-500.0,0.00018998,2]
[343314516,1732573832939,-500.0,0.00018998,2]
[343314517,1732573832949,-500.0,0.00018998,2]
[343314518,1732573832959,-500.0,0.00018998,2]
[343314519,1732573832971,-500.0,0.00018998,2]
[343314520,1732573832980,-644.83713355,0.00018998,2]
[343314521,1732573832990,-500.0,0.00018998,2]
[343314522,1732573833000,-500.0,0.00018998,2]
[343314523,1732573833010,-500.0,0.00018998,2]
[343314524,1732573833020,-500.0,0.00018998,2]
[343314525,1732573833030,-500.0,0.00018998,2]
[343314526,1732573833040,-500.0,0.00018998,2]
[343314527,1732573833052,-500.0,0.00018998,2]
[343314528,1732573833063,-500.0,0.00018998,2]
[343314529,1732573833073,-500.0,0.00018998,2]
[343314530,1732573833083,-500.0,0.00018998,2]
[343314531,1732573833093,-500.0,0.00018998,2]
[343314532,1732573833103,-500.0,0.00018998,2]
[343314533,1732573833113,-500.0,0.00018998,2]
[343314534,1732573833123,-500.0,0.00018998,2]
[343314535,1732573833132,-500.0,0.00018998,2]
[343314536,1732573833141,-500.0,0.00018998,2]
[343314537,1732573833151,-500.0,0.00018998,2]
[343314538,1732573833163,-500.0,0.00018998,2]
[343314539,1732573833174,-500.0,0.00018998,2]
[343314540,1732573833187,-500.0,0.00018998,2]
[343314541,1732573833198,-500.0,0.00018998,2]
[343314542,1732573833207,-500.0,0.00018998,2]
[343314543,1732573833217,-500.0,0.00018998,2]
[343314544,1732573833228,-500.0,0.00018998,2]
[343314545,1732573833238,-500.0,0.00018998,2]
[343314546,1732573833248,-500.0,0.00018998,2]
[343314547,1732573833259,-500.0,0.00018998,2]
[343314548,1732573833269,-500.0,0.00018998,2]
[343314549,1732573833279,-500.0,0.00018998,2]
[343314550,1732573833288,-500.0,0.00018998,2]
[343314551,1732573833299,-500.0,0.00018998,2]
[343314552,1732573833308,-500.0,0.00018998,2]
[343314553,1732573833318,-500.0,0.00018998,2]
[343314554,1732573833327,-500.0,0.00018998,2]
[343314555,1732573833338,-500.0,0.00018998,2]
[343314556,1732573833348,-460.02441521,0.00018998,2]
[343314557,1732573833358,-150.0,0.00018998,2]
[343314558,1732573833368,-150.0,0.00018998,2]
[343314559,1732573833379,-150.0,0.00018998,2]
[343314560,1732573833389,-150.0,0.00018998,2]
[343314561,1732573833399,-196.00888595,0.00018999,2]
[343314562,1732573833410,-64135.14080198,0.00018999,2]
[343314563,1732573833438,-15033.23,0.00018999,2]
[343314564,1732573833450,-41809.11302709,0.00018999,2]
[343314565,1732573833491,-939.13181154,0.00018999,2]
[343314566,1732573833503,-46650.0,0.00018999,2]
[343314567,1732573833520,-2134.254951,0.00018999,2]
[343314569,1732573835490,-214.14354204,0.000184,2]
[343314570,1732573835500,-583.20807415,0.00018899,2]
[343314571,1732573835509,-159.25433002,0.00018973,2]
[343314572,1732573835518,-600.20203462,0.00018999,2]
[343314587,1732573837672,-3998.12462042,0.00018999,2]
[343314588,1732573837688,-5366.360887,0.00018999,2]
[343314589,1732573837699,-644.02035499,0.00018999,2]
[343314590,1732573837722,-61870.58445208,0.00018999,2]
[343314591,1732573837796,-207403.43156375,0.00018999,2]
[343314592,1732573837811,-2913.9410511,0.00018999,2]
[343314593,1732573837847,-3001.4249828,0.00018999,2]
[343314594,1732573837897,-4671.0,0.00018999,2]
[343314595,1732573837909,-59287.87228472,0.00018999,2]
[343314596,1732573837920,-317217.0202352,0.00018999,2]
[343314597,1732573837931,-1019.33870642,0.00018999,5]
[343314598,1732573837940,-300.0,0.00018999,2]
[343314599,1732573837949,-196.00888595,0.00019,2]
[343314600,1732573837958,-4000.0,0.00019,3]
[343314601,1732573837970,-4000.0,0.00019,4]
[343314602,1732573837979,-4000.67157887,0.00019,2]
[343314603,1732573837989,-2453.0,0.00019,2]
[343314604,1732573837998,-45892829.0,0.00019,2]
[343314605,1732573838008,-350.0,0.00019,2]
[343314606,1732573838017,-102710.42,0.00019077,2]
[343314607,1732573838026,-300.0,0.00019109,2]
[343314608,1732573838035,-829.86,0.00019174,2]
[343314609,1732573838044,-531.74,0.00019256,2]
[343314610,1732573838054,-300.0,0.00019303,2]
[343314611,1732573838064,-1132.85503964,0.00019521,2]
[343314612,1732573838073,-1000.0,0.00019521,2]
[343314613,1732573838082,-166.66,0.00019541,2]
[343314614,1732573838091,-153.97853526,0.00019658,2]
[343314615,1732573838100,-3315.303,0.0001984,2]
[343314616,1732573838109,-170.287,0.0001984,2]
[343314617,1732573838118,-500.0,0.0001984,2]
[343314618,1732573838127,-763.88416748,0.000199,3]
[343314619,1732573838136,-3980.0,0.00019973,2]
[343314620,1732573838145,-500.0,0.00019973,2]
[343314621,1732573838155,-500.0,0.00019973,2]
[343314622,1732573838163,-299.82995671,0.00019973,2]
[343314623,1732573838172,-500.0,0.00019973,2]
[343314624,1732573838185,-500.0,0.00019973,2]
[343314625,1732573838194,-494.3012697,0.00019998,3]
[343314626,1732573838204,-787.04,0.00019998,2]
[343314627,1732573838213,-412.94038951,0.00019999,2]
[343314628,1732573838222,-167.68962752,0.00019999,2]
[343314629,1732573838231,-4369.52568212,0.00019999,2]
[343314630,1732573838240,-1000.0,0.00019999,2]
[343314632,1732573838249,-1000.0,0.00019999,2]
[343314634,1732573838260,-1000.0,0.00019999,2]
[343314635,1732573838270,-1000.0,0.00019999,2]
[343314637,1732573838279,-200.6204452,0.00019999,5]
[343314639,1732573838288,-1236.88962857,0.00019999,5]
[343314641,1732573838297,-1236.88962857,0.00019999,5]
[343314643,1732573838306,-1236.88962857,0.00019999,5]
[343314645,1732573838315,-1236.88962857,0.00019999,5]
[343314647,1732573838325,-1236.88962857,0.00019999,5]
[343314649,1732573838334,-1236.88962857,0.00019999,5]
[343314651,1732573838344,-1236.88962857,0.00019999,5]
[343314653,1732573838353,-1236.88962857,0.00019999,5]
[343314655,1732573838362,-1236.88962852,0.00019999,5]
[343314657,1732573838371,-1236.88962857,0.00019999,5]
[343314659,1732573838380,-1236.88962857,0.00019999,5]
[343314661,1732573838389,-1236.88962857,0.00019999,5]
[343314663,1732573838398,-865.63,0.00019999,2]
[343314665,1732573838407,-57257967.86503191,0.0002,2]
[343314667,1732573838419,-466.43,0.0002,2]
[343314669,1732573838432,-9351.19070396,0.0002,2]
[343314681,1732573838535,-5510.79368607,0.0002,2]
[343314861,1732573840236,-475.425,0.00018899,2]
[343314863,1732573840248,-107.78307415,0.00018899,2]
[343314865,1732573840258,-367.27692585,0.00019936,2]
[343314867,1732573840269,-54.65942907,0.00019936,2]
[343314869,1732573840278,-1056.67544382,0.0002,2]
[343314871,1732573840289,-4672.45726883,0.0002,2]
[343315142,1732573842991,-270.88,0.0001999,3]
[343315144,1732573843001,-150.01,0.00019999,2]
[343315146,1732573843010,-364714.78090001,0.0002,2]
[343315148,1732573843022,-274.1010261,0.0002,2]
[343315151,1732573843037,-376.70074,0.0002,2]
[343315154,1732573843056,-1869.96,0.0002,2]
[343315185,1732573843306,-848.37960591,0.0002,2]
[343315197,1732573843405,-3641.27140177,0.00019999,2]
[343315199,1732573843414,-90616.54514449,0.0002,2]
[343315201,1732573843425,-933.88,0.0002,2]
[343315203,1732573843438,-9178.73983986,0.0002,2]
[343315206,1732573843448,-5924.49271988,0.0002,2]
[343315209,1732573843475,-14934.92666496,0.0002,2]
[343315212,1732573843487,-2969.53701938,0.0002,2]
[343315215,1732573843510,-992.02630418,0.0002,2]
[343315225,1732573843595,-2453.99999995,0.0002,2]
[343315281,1732573845513,-363.64633333,0.000189,2]
[343315287,1732573845716,-219.56174082,0.000189,2]
[343315288,1732573845732,-500.0,0.00018998,2]
[343315289,1732573845747,-500.0,0.00018998,2]
[343315290,1732573845765,-546.83470452,0.00018998,2]
[343315291,1732573845780,-17051.06335466,0.0002,2]
[343315292,1732573845798,-936.64571,0.0002,2]
[343315293,1732573845870,-412.95896702,0.0002,2]
[343315294,1732573845891,-958.74,0.0002,2]
[343315295,1732573845970,-1086.63025837,0.0002,2]
[343315296,1732573845988,-5476.85769597,0.0002,2]
[343315301,1732573846097,-23215.75221673,0.0002,2]
[343315302,1732573846116,-21784.24778327,0.0002,2]
[343315303,1732573846147,-1662863.47932484,0.0002,2]
[343315304,1732573846165,-705.80000098,0.0002,2]
[343315305,1732573846191,-2362.59942969,0.0002,2]
[343315306,1732573846272,-709.50000003,0.0002,2]
[343315320,1732574493318,-214.14354204,0.00018479,2]
[343315321,1732574493341,-300.0,0.00018615,2]
[343315322,1732574493365,-10302.11900883,0.00018616,2]
[343315323,1732574493389,-250.0,0.00018678,2]
[343315324,1732574493413,-2000.0,0.00018687,2]
[343315325,1732574493435,-158.17,0.00018716,2]
[343315326,1732574493458,-500.0,0.00018793,2]
[343315327,1732574493479,-200.0,0.0001885,2]
[343315328,1732574493501,-16081.30160615,0.0001899,2]
[343315329,1732574493526,-663.89,0.00018992,2]
[343315330,1732574493549,-163.57,0.00018992,2]
[343315331,1732574493571,-1000.0,0.00018999,2]
[343315332,1732574493594,-500.0,0.00018999,2]
[343315333,1732574493616,-18924.1152098,0.00019,2]
[343315334,1732574493639,-734.89,0.00019001,2]
[343315335,1732574493661,-250.0,0.00019019,2]
[343315336,1732574493684,-1046.17,0.00019134,2]
[343315337,1732574493708,-365.63,0.00019136,2]
[343315338,1732574493731,-23900.0,0.00019175,2]
[343315339,1732574493754,-752.18,0.0001925,2]
[343315340,1732574493781,-1141.59,0.00019365,2]
[343315341,1732574493804,-9494.01,0.00019452,7]
[343315342,1732574493826,-16102.81,0.00019452,7]
[343315343,1732574493849,-7697.64,0.00019452,7]
[343315344,1732574493873,-949.47,0.00019452,7]
[343315345,1732574493896,-3964.42,0.00019452,7]
[343315346,1732574493919,-4977.87,0.00019452,7]
[343315347,1732574493943,-581373.43,0.00019597,7]
[343315348,1732574493966,-25346.7,0.00019597,7]
[343315349,1732574493989,-471.0,0.00019602,2]
[343315350,1732574494011,-150.0,0.00019752,2]
[343315351,1732574494034,-421.9363549,0.00019838,2]
[343315352,1732574494061,-166.7,0.00019897,2]
[343315353,1732574494085,-2196.58387023,0.00019899,2]
[343315354,1732574494109,-2196.58387021,0.00019899,2]
[343315355,1732574494133,-2196.58387021,0.00019899,2]
[343315356,1732574494156,-2196.58387021,0.00019899,2]
[343315357,1732574494179,-1594.7082,0.000199,2]
[343315358,1732574494201,-259.52214462,0.000199,2]
[343315359,1732574494223,-414.60017621,0.000199,2]
[343315360,1732574494244,-8039.1713284,0.000199,2]
[343315361,1732574494266,-7249.5794384,0.000199,2]
[343315362,1732574494290,-1909.67185688,0.000199,2]
[343315363,1732574494311,-610.1817339,0.000199,3]
[343315364,1732574494332,-9550.0583,0.000199,2]
[343315365,1732574494355,-10697.292,0.000199,2]
[343315366,1732574494378,-663.89,0.00019942,2]
[343315367,1732574494399,-3980.0,0.00019973,2]
[343315368,1732574494421,-500.0,0.00019973,2]
[343315369,1732574494443,-153.97853526,0.00019973,2]
[343315370,1732574494465,-500.0,0.00019973,2]
[343315371,1732574494486,-500.0,0.00019973,2]
[343315372,1732574494508,-23368.32768366,0.00019988,2]
[343315373,1732574494530,-412.94038951,0.00019998,2]
[343315374,1732574494552,-494.3012697,0.00019998,3]
[343315375,1732574494874,-150.0,0.00019998,2]
[343315376,1732574494899,-866.68,0.00019999,2]
[343315377,1732574494922,-150.01,0.00019999,2]
[343315378,1732574494945,-1000.0,0.00019999,2]
[343315379,1732574494967,-1000.0,0.00019999,2]
[343315380,1732574494990,-3762.64711516,0.00019999,2]
[343315381,1732574495013,-1000.0,0.00019999,2]
[343315382,1732574495035,-1000.0,0.00019999,2]
[343315383,1732574495059,-1236.88962857,0.00019999,5]
[343315384,1732574495080,-1236.88962857,0.00019999,5]
[343315385,1732574495104,-1236.88962857,0.00019999,5]
[343315386,1732574495126,-1236.88962857,0.00019999,5]
[343315387,1732574495151,-1236.88962857,0.00019999,5]
[343315388,1732574495173,-1236.88962857,0.00019999,5]
[343315389,1732574495196,-1236.88962852,0.00019999,5]
[343315390,1732574495218,-1236.88962857,0.00019999,5]
[343315391,1732574495241,-1236.88962857,0.00019999,5]
[343315392,1732574495264,-1236.88962857,0.00019999,5]
[343315393,1732574495285,-1236.88962857,0.00019999,5]
[343315394,1732574495314,-1236.88962857,0.00019999,5]
[343315395,1732574495338,-165.70898113,0.00019999,2]
[343315396,1732574495361,-171.87052273,0.00019999,2]
[343315397,1732574495386,-500.0,0.00019999,2]
[343315398,1732574495410,-500.0,0.00019999,2]
[343315399,1732574495444,-500.0,0.00019999,2]
[343315400,1732574495468,-500.0,0.00019999,2]
[343315401,1732574495492,-500.0,0.00019999,2]
[343315402,1732574495516,-500.0,0.00019999,2]
[343315403,1732574495542,-500.0,0.00019999,2]
[343315404,1732574495565,-500.0,0.00019999,2]
[343315405,1732574495589,-500.0,0.00019999,2]
[343315406,1732574495613,-500.0,0.00019999,2]
[343315407,1732574495637,-500.0,0.00019999,2]
[343315408,1732574495661,-231.09301484,0.00019999,2]
[343315409,1732574495684,-500.0,0.00019999,2]
[343315410,1732574495709,-500.0,0.00019999,2]
[343315411,1732574495734,-500.0,0.00019999,2]
[343315412,1732574495758,-500.0,0.00019999,2]
[343315413,1732574495791,-500.0,0.00019999,2]
[343315414,1732574495816,-500.0,0.00019999,2]
[343315415,1732574495841,-500.0,0.00019999,2]
[343315416,1732574495866,-500.0,0.00019999,2]
[343315417,1732574495892,-500.0,0.00019999,2]
[343315418,1732574495917,-500.0,0.00019999,2]
[343315419,1732574495952,-500.0,0.00019999,2]
[343315420,1732574495979,-500.0,0.00019999,2]
[343315421,1732574496005,-500.0,0.00019999,2]
[343315422,1732574496034,-500.0,0.00019999,2]
[343315423,1732574496060,-500.0,0.00019999,2]
[343315424,1732574496084,-500.0,0.00019999,2]
[343315425,1732574496109,-500.0,0.00019999,2]
[343315426,1732574496133,-500.0,0.00019999,2]
[343315427,1732574496156,-500.0,0.00019999,2]
[343315428,1732574496180,-500.0,0.00019999,2]